[Event "*** SCC Grand Prix: Titled Tuesday Blitz"]
[Site "Chess.com"]
[Date "2020.09.29"]
[Round "10"]
[White "cukin84"]
[Black "AntonovaNadezhda"]
[Result "1-0"]
[WhiteElo "2104"]
[BlackElo "2038"]
[TimeControl "180+1"]
[EndTime "11:56:25 PDT"]
[Termination "cukin84 won on time"]

1. e4 {[%clk 0:03:00.9]} 1... c5 {[%clk 0:02:59.5]} 2. Nc3 {[%clk 0:02:59.9]}
2... Nc6 {[%clk 0:02:58]} 3. Bb5 {[%clk 0:02:58.6]} 3... e6 {[%clk 0:02:55.7]}
4. Bxc6 {[%clk 0:02:58.2]} 4... dxc6 {[%clk 0:02:55]} 5. d3 {[%clk 0:02:57.9]}
5... Be7 {[%clk 0:02:55.1]} 6. f4 {[%clk 0:02:57.2]} 6... Nf6 {[%clk 0:02:53.2]}
7. Nf3 {[%clk 0:02:57.1]} 7... O-O {[%clk 0:02:53.1]} 8. O-O {[%clk 0:02:56.4]}
8... Nd7 {[%clk 0:02:49.7]} 9. Kh1 {[%clk 0:02:54.1]} 9... b5 {[%clk 0:02:43.1]}
10. Qe1 {[%clk 0:02:50.9]} 10... b4 {[%clk 0:02:41.1]} 11. Ne2 {[%clk
0:02:49.3]} 11... f5 {[%clk 0:02:39]} 12. Ng3 {[%clk 0:02:47.3]} 12... Nf6
{[%clk 0:02:35.1]} 13. Be3 {[%clk 0:02:40.4]} 13... a5 {[%clk 0:02:17.6]} 14. b3
{[%clk 0:02:38.5]} 14... a4 {[%clk 0:02:14.6]} 15. Rd1 {[%clk 0:02:36.3]} 15...
axb3 {[%clk 0:02:13.6]} 16. axb3 {[%clk 0:02:35.4]} 16... Ra2 {[%clk 0:02:13.8]}
17. Qe2 {[%clk 0:02:26.8]} 17... Bd7 {[%clk 0:02:08.4]} 18. Ne5 {[%clk
0:02:25.6]} 18... g6 {[%clk 0:02:04.5]} 19. h3 {[%clk 0:02:21.8]} 19... Qc7
{[%clk 0:02:00.2]} 20. Qf2 {[%clk 0:02:20.7]} 20... Rfa8 {[%clk 0:01:51.9]} 21.
Bxc5 {[%clk 0:02:19.7]} 21... Bf8 {[%clk 0:01:42.1]} 22. Bxf8 {[%clk 0:02:17.7]}
22... Rxf8 {[%clk 0:01:41.1]} 23. Qc5 {[%clk 0:02:13.6]} 23... Be8 {[%clk
0:01:40.3]} 24. Rd2 {[%clk 0:02:03.3]} 24... Qb7 {[%clk 0:01:35.3]} 25. Nc4
{[%clk 0:01:58.2]} 25... Nd7 {[%clk 0:01:31.6]} 26. Qd6 {[%clk 0:01:52.2]} 26...
Bf7 {[%clk 0:01:30.8]} 27. Re1 {[%clk 0:01:43.2]} 27... Qb8 {[%clk 0:01:11.9]}
28. Qxb8 {[%clk 0:01:40.8]} 28... Rxb8 {[%clk 0:01:08.3]} 29. Nd6 {[%clk
0:01:39]} 29... Nc5 {[%clk 0:01:00.9]} 30. exf5 {[%clk 0:01:35.2]} 30... gxf5
{[%clk 0:00:47.1]} 31. Rde2 {[%clk 0:01:30.7]} 31... Rd8 {[%clk 0:00:36.2]} 32.
Nc4 {[%clk 0:01:28]} 32... Kg7 {[%clk 0:00:25.4]} 33. Nf1 {[%clk 0:01:22.6]}
33... Kf6 {[%clk 0:00:23.8]} 34. Nfe3 {[%clk 0:01:19.5]} 34... Bh5 {[%clk
0:00:21.6]} 35. g4 {[%clk 0:01:17.3]} 35... Bg6 {[%clk 0:00:17.6]} 36. g5+
{[%clk 0:01:12.4]} 36... Kg7 {[%clk 0:00:16.1]} 37. Ne5 {[%clk 0:01:10.3]} 37...
Be8 {[%clk 0:00:14.8]} 38. N3c4 {[%clk 0:01:08.8]} 38... Nb7 {[%clk 0:00:09.4]}
39. Rg2 {[%clk 0:01:02.3]} 39... Nc5 {[%clk 0:00:07.3]} 40. h4 {[%clk
0:00:52.3]} 40... Nb7 {[%clk 0:00:06.1]} 41. h5 {[%clk 0:00:49.3]} 41... Nd6
{[%clk 0:00:05.6]} 42. h6+ {[%clk 0:00:49.2]} 42... Kg8 {[%clk 0:00:04.8]} 43.
g6 {[%clk 0:00:48.8]} 43... Bxg6 {[%clk 0:00:04.1]} 44. Nxg6 {[%clk 0:00:48.2]}
44... hxg6 {[%clk 0:00:04.3]} 45. Rxg6+ {[%clk 0:00:46.9]} 45... Kh7 {[%clk
0:00:04.8]} 46. Rgxe6 {[%clk 0:00:46.8]} 46... Nxc4 {[%clk 0:00:04.8]} 47. bxc4
{[%clk 0:00:46.4]} 47... Rxc2 {[%clk 0:00:04.7]} 48. Re7+ {[%clk 0:00:44]} 48...
Kxh6 {[%clk 0:00:04.8]} 49. R1e6+ {[%clk 0:00:43.7]} 49... Kh5 {[%clk
0:00:04.9]} 50. Re5 {[%clk 0:00:37.3]} 50... Rxd3 {[%clk 0:00:03.4]} 51. Rxf5+
{[%clk 0:00:36.6]} 51... Kg4 {[%clk 0:00:04]} 52. Rg5+ {[%clk 0:00:36.7]} 52...
Kf3 {[%clk 0:00:03.9]} 53. Rg1 {[%clk 0:00:35.7]} 53... Rdd2 {[%clk 0:00:03.8]}
54. Rf1+ {[%clk 0:00:34.5]} 54... Kg4 {[%clk 0:00:03.4]} 55. Rg7+ {[%clk
0:00:33.4]} 55... Kf5 {[%clk 0:00:03.5]} 56. Rh7 {[%clk 0:00:33.3]} 56... Re2
{[%clk 0:00:02.1]} 57. Rd1 {[%clk 0:00:30.6]} 1-0

[Event "*** SCC Grand Prix: Titled Tuesday Blitz"]
[Site "Chess.com"]
[Date "2020.09.29"]
[Round "10"]
[White "Fy_Rakotomaharo"]
[Black "Oleksandr_Bortnyk"]
[Result "0-1"]
[WhiteElo "2678"]
[BlackElo "2897"]
[TimeControl "180+1"]
[EndTime "11:56:27 PDT"]
[Termination "Oleksandr_Bortnyk won on time"]

1. e4 {[%clk 0:03:00.9]} 1... Nf6 {[%clk 0:02:59.9]} 2. e5 {[%clk 0:03:01]} 2...
Nd5 {[%clk 0:03:00.1]} 3. d4 {[%clk 0:02:59.5]} 3... d6 {[%clk 0:03:00.4]} 4.
Nf3 {[%clk 0:02:59.9]} 4... dxe5 {[%clk 0:03:00.8]} 5. Nxe5 {[%clk 0:03:00.3]}
5... c6 {[%clk 0:03:01.2]} 6. c3 {[%clk 0:02:53.9]} 6... Nd7 {[%clk 0:02:56.7]}
7. Nf3 {[%clk 0:02:53.6]} 7... g6 {[%clk 0:02:53]} 8. Bd3 {[%clk 0:02:50.1]}
8... Bg7 {[%clk 0:02:52.5]} 9. O-O {[%clk 0:02:50.7]} 9... O-O {[%clk
0:02:53.1]} 10. Re1 {[%clk 0:02:51.2]} 10... Re8 {[%clk 0:02:53.4]} 11. Na3
{[%clk 0:02:41.4]} 11... e5 {[%clk 0:02:51]} 12. Nc4 {[%clk 0:02:41.5]} 12...
exd4 {[%clk 0:02:49.2]} 13. Rxe8+ {[%clk 0:02:35.3]} 13... Qxe8 {[%clk
0:02:50.1]} 14. cxd4 {[%clk 0:02:30.4]} 14... N7b6 {[%clk 0:02:49]} 15. Nd6
{[%clk 0:02:10.7]} 15... Qe7 {[%clk 0:02:46.3]} 16. Nxc8 {[%clk 0:02:08.5]}
16... Rxc8 {[%clk 0:02:47.2]} 17. Bg5 {[%clk 0:02:08.7]} 17... Qb4 {[%clk
0:02:45.8]} 18. Qd2 {[%clk 0:02:03.5]} 18... Bxd4 {[%clk 0:02:36]} 19. Nxd4
{[%clk 0:01:48.4]} 19... Qxd4 {[%clk 0:02:36.9]} 20. Re1 {[%clk 0:01:00.8]}
20... Nc4 {[%clk 0:01:31.3]} 21. Bxc4 {[%clk 0:00:24.3]} 21... Qxc4 {[%clk
0:01:32.2]} 22. h4 {[%clk 0:00:23.2]} 22... h5 {[%clk 0:01:20.2]} 23. b3 {[%clk
0:00:19.4]} 23... Qg4 {[%clk 0:00:53.2]} 24. Qd3 {[%clk 0:00:19.2]} 24... Kh7
{[%clk 0:00:45.1]} 25. Re4 {[%clk 0:00:17.7]} 25... Qf5 {[%clk 0:00:44.2]} 26.
Qd4 {[%clk 0:00:15.2]} 26... c5 {[%clk 0:00:44]} 27. Qe5 {[%clk 0:00:14.6]}
27... f6 {[%clk 0:00:30.4]} 28. Qd6 {[%clk 0:00:08.4]} 28... Qxe4 {[%clk
0:00:22.3]} 29. Qd7+ {[%clk 0:00:08.2]} 29... Qe7 {[%clk 0:00:17.9]} 30. Qxc8
{[%clk 0:00:07.3]} 30... fxg5 {[%clk 0:00:18.2]} 31. hxg5 {[%clk 0:00:07.9]}
31... b6 {[%clk 0:00:17.3]} 32. g3 {[%clk 0:00:07.2]} 32... Nc7 {[%clk
0:00:14.4]} 33. Qb7 {[%clk 0:00:06.7]} 33... Kg7 {[%clk 0:00:09.6]} 34. Kh1
{[%clk 0:00:06.8]} 34... Qd7 {[%clk 0:00:05.3]} 35. Kh2 {[%clk 0:00:07.3]} 35...
Kf7 {[%clk 0:00:04.1]} 36. Qxa7 {[%clk 0:00:07.1]} 36... Qd6 {[%clk 0:00:03.1]}
37. Qb7 {[%clk 0:00:06.6]} 37... Ke7 {[%clk 0:00:03.1]} 38. Qe4+ {[%clk
0:00:06.5]} 38... Qe6 {[%clk 0:00:03.5]} 39. Qb7 {[%clk 0:00:06.7]} 39... Kd7
{[%clk 0:00:04.1]} 40. Kg1 {[%clk 0:00:06.1]} 40... Qd6 {[%clk 0:00:03.6]} 41.
Qe4 {[%clk 0:00:05.1]} 41... Nd5 {[%clk 0:00:03.6]} 42. Qd3 {[%clk 0:00:03.8]}
42... Ne7 {[%clk 0:00:03.8]} 43. Qb5+ {[%clk 0:00:03.8]} 43... Qc6 {[%clk
0:00:04.1]} 44. Qa6 {[%clk 0:00:03.9]} 44... Ke6 {[%clk 0:00:03.9]} 45. Qa7
{[%clk 0:00:03.8]} 45... Qd6 {[%clk 0:00:03.6]} 46. Qa8 {[%clk 0:00:03.5]} 46...
Qd1+ {[%clk 0:00:03.6]} 47. Kh2 {[%clk 0:00:02.9]} 47... Qe2 {[%clk 0:00:03.9]}
48. Kg1 {[%clk 0:00:01.3]} 48... Qe1+ {[%clk 0:00:04.4]} 49. Kg2 {[%clk
0:00:01.4]} 49... Qe5 {[%clk 0:00:05.3]} 0-1

[Event "*** SCC Grand Prix: Titled Tuesday Blitz"]
[Site "Chess.com"]
[Date "2020.09.29"]
[Round "10"]
[White "Gerodot71"]
[Black "Srisshhhtea"]
[Result "1-0"]
[WhiteElo "2462"]
[BlackElo "2304"]
[TimeControl "180+1"]
[EndTime "11:56:30 PDT"]
[Termination "Gerodot71 won by checkmate"]

1. d4 {[%clk 0:03:00.9]} 1... Nf6 {[%clk 0:02:59.9]} 2. c4 {[%clk 0:02:59.8]}
2... g6 {[%clk 0:03:00]} 3. Nc3 {[%clk 0:02:59.4]} 3... Bg7 {[%clk 0:03:00.6]}
4. e4 {[%clk 0:02:59]} 4... d6 {[%clk 0:03:01.1]} 5. Be2 {[%clk 0:02:59.3]} 5...
O-O {[%clk 0:03:01]} 6. Be3 {[%clk 0:02:59.1]} 6... Na6 {[%clk 0:02:58.9]} 7.
Qd2 {[%clk 0:02:55.6]} 7... e5 {[%clk 0:02:55.3]} 8. d5 {[%clk 0:02:54.2]} 8...
Nc5 {[%clk 0:02:55.2]} 9. f3 {[%clk 0:02:53.7]} 9... a5 {[%clk 0:02:53.3]} 10.
h4 {[%clk 0:02:51.4]} 10... c6 {[%clk 0:02:53]} 11. g4 {[%clk 0:02:50.2]} 11...
a4 {[%clk 0:02:52.7]} 12. h5 {[%clk 0:02:39.2]} 12... cxd5 {[%clk 0:02:52.6]}
13. cxd5 {[%clk 0:02:38.8]} 13... Bd7 {[%clk 0:02:49.7]} 14. Nh3 {[%clk
0:02:37.7]} 14... Rb8 {[%clk 0:02:28]} 15. Nb5 {[%clk 0:02:23.8]} 15... Nfxe4
{[%clk 0:02:22.9]} 16. fxe4 {[%clk 0:02:20.3]} 16... Nxe4 {[%clk 0:02:23.8]} 17.
Qb4 {[%clk 0:02:11.7]} 17... Ng3 {[%clk 0:02:15.1]} 18. Rg1 {[%clk 0:02:08.5]}
18... Qh4 {[%clk 0:02:07.7]} 19. Bf2 {[%clk 0:02:03.2]} 19... Qxh3 {[%clk
0:01:58.7]} 20. Rxg3 {[%clk 0:02:01.7]} 20... Qh1+ {[%clk 0:01:58.5]} 21. Rg1
{[%clk 0:02:00.3]} 21... Qxd5 {[%clk 0:01:59.4]} 22. Qxd6 {[%clk 0:01:53.7]}
22... Qxd6 {[%clk 0:01:44.4]} 23. Nxd6 {[%clk 0:01:54.6]} 23... Bc6 {[%clk
0:01:42.9]} 24. Bb6 {[%clk 0:01:42.8]} 24... e4 {[%clk 0:01:39]} 25. O-O-O
{[%clk 0:01:34.2]} 25... Ra8 {[%clk 0:01:31.5]} 26. Kb1 {[%clk 0:01:25]} 26...
a3 {[%clk 0:01:29.6]} 27. b3 {[%clk 0:01:22.7]} 27... Be5 {[%clk 0:01:07.7]} 28.
Rgf1 {[%clk 0:01:19.9]} 28... Kg7 {[%clk 0:01:03.8]} 29. Bc4 {[%clk 0:01:16.7]}
29... f6 {[%clk 0:00:59.9]} 30. Rfe1 {[%clk 0:01:12]} 30... f5 {[%clk
0:00:57.2]} 31. hxg6 {[%clk 0:00:36.6]} 31... hxg6 {[%clk 0:00:51.5]} 32. Rg1
{[%clk 0:00:37.2]} 32... f4 {[%clk 0:00:49.4]} 33. Bd4 {[%clk 0:00:33.9]} 33...
Bxd4 {[%clk 0:00:46.4]} 34. Rxd4 {[%clk 0:00:34.8]} 34... e3 {[%clk 0:00:45.9]}
35. Re1 {[%clk 0:00:25.5]} 35... Rad8 {[%clk 0:00:43.5]} 36. Kc2 {[%clk
0:00:22.7]} 36... Bg2 {[%clk 0:00:34.2]} 37. Kc3 {[%clk 0:00:21.6]} 37... Rf6
{[%clk 0:00:24]} 38. Nb5 {[%clk 0:00:20]} 38... Rxd4 {[%clk 0:00:21.3]} 39. Nxd4
{[%clk 0:00:20.9]} 39... Bh3 {[%clk 0:00:17]} 40. g5 {[%clk 0:00:18.6]} 40...
Rd6 {[%clk 0:00:15]} 41. Nf3 {[%clk 0:00:17.4]} 41... Bg2 {[%clk 0:00:09]} 42.
Ne5 {[%clk 0:00:17]} 42... Rd8 {[%clk 0:00:08.1]} 43. Nd3 {[%clk 0:00:14]} 43...
f3 {[%clk 0:00:07.2]} 44. Rxe3 {[%clk 0:00:13.8]} 44... Rf8 {[%clk 0:00:05.1]}
45. Re7+ {[%clk 0:00:13.3]} 45... Kh8 {[%clk 0:00:05.3]} 46. Nf2 {[%clk
0:00:13.9]} 46... Rf5 {[%clk 0:00:05.8]} 47. Ne4 {[%clk 0:00:11]} 47... f2
{[%clk 0:00:05.6]} 48. Nf6 {[%clk 0:00:08.9]} 48... f1=Q {[%clk 0:00:04]} 49.
Rh7# {[%clk 0:00:08]} 1-0

[Event "*** SCC Grand Prix: Titled Tuesday Blitz"]
[Site "Chess.com"]
[Date "2020.09.29"]
[Round "10"]
[White "chessmaGIA"]
[Black "Khnykin_Nikolay"]
[Result "1-0"]
[WhiteElo "1685"]
[BlackElo "2068"]
[TimeControl "180+1"]
[EndTime "11:56:30 PDT"]
[Termination "chessmaGIA won on time"]

1. d4 {[%clk 0:03:00.9]} 1... e6 {[%clk 0:02:58.9]} 2. c4 {[%clk 0:03:00.2]}
2... f5 {[%clk 0:02:58.6]} 3. Nc3 {[%clk 0:02:59.8]} 3... d5 {[%clk 0:02:57.2]}
4. cxd5 {[%clk 0:02:58.5]} 4... exd5 {[%clk 0:02:58.1]} 5. Nf3 {[%clk
0:02:58.6]} 5... Nf6 {[%clk 0:02:57.6]} 6. Bf4 {[%clk 0:02:55.8]} 6... Bb4
{[%clk 0:02:57.2]} 7. e3 {[%clk 0:02:55.1]} 7... Ne4 {[%clk 0:02:56.9]} 8. Qa4+
{[%clk 0:02:53.6]} 8... Nc6 {[%clk 0:02:54.9]} 9. Rc1 {[%clk 0:02:52.1]} 9...
Bd7 {[%clk 0:02:49.7]} 10. Bb5 {[%clk 0:02:50.6]} 10... Bxc3+ {[%clk 0:02:42]}
11. bxc3 {[%clk 0:02:49.4]} 11... a6 {[%clk 0:02:41.9]} 12. Bxc6 {[%clk
0:02:46.6]} 12... Bxc6 {[%clk 0:02:42.8]} 13. Qb3 {[%clk 0:02:45.3]} 13... g5
{[%clk 0:02:40.3]} 14. Be5 {[%clk 0:02:44.3]} 14... Rg8 {[%clk 0:02:38.5]} 15.
c4 {[%clk 0:02:40]} 15... g4 {[%clk 0:02:32.2]} 16. Nd2 {[%clk 0:02:34.9]} 16...
Qd7 {[%clk 0:02:22.7]} 17. Nxe4 {[%clk 0:02:27.7]} 17... fxe4 {[%clk 0:02:17.9]}
18. cxd5 {[%clk 0:02:23.6]} 18... Bxd5 {[%clk 0:02:16.3]} 19. Qb4 {[%clk
0:02:11.5]} 19... Bc6 {[%clk 0:02:11.6]} 20. O-O {[%clk 0:02:05.6]} 20... O-O-O
{[%clk 0:02:10.3]} 21. Rfd1 {[%clk 0:02:05.5]} 21... Qd5 {[%clk 0:02:05.2]} 22.
Rc5 {[%clk 0:02:01.8]} 22... Qe6 {[%clk 0:02:02.4]} 23. d5 {[%clk 0:01:55.7]}
23... Qxe5 {[%clk 0:02:02.2]} 24. Rdc1 {[%clk 0:01:28.9]} 24... Qd6 {[%clk
0:01:57.7]} 25. dxc6 {[%clk 0:01:24.1]} 25... b6 {[%clk 0:01:22.6]} 26. R5c4
{[%clk 0:01:15.6]} 26... Qxb4 {[%clk 0:01:17.2]} 27. Rxb4 {[%clk 0:01:15.5]}
27... Rd6 {[%clk 0:01:17.6]} 28. Rxe4 {[%clk 0:01:11.3]} 28... Rgd8 {[%clk
0:01:16.1]} 29. g3 {[%clk 0:01:04.5]} 29... h5 {[%clk 0:01:14.6]} 30. Re5 {[%clk
0:01:03]} 30... Rd5 {[%clk 0:01:13.8]} 31. Re7 {[%clk 0:00:48.9]} 31... b5
{[%clk 0:01:06.4]} 32. Kf1 {[%clk 0:00:46.8]} 32... Kb8 {[%clk 0:01:03.9]} 33.
e4 {[%clk 0:00:42.2]} 33... Rd1+ {[%clk 0:00:44.9]} 34. Rxd1 {[%clk 0:00:41.8]}
34... Rxd1+ {[%clk 0:00:45.8]} 35. Ke2 {[%clk 0:00:42.3]} 35... Rh1 {[%clk
0:00:44.9]} 36. e5 {[%clk 0:00:37.5]} 36... Ra1 {[%clk 0:00:33.7]} 37. e6 {[%clk
0:00:36.5]} 37... Rxa2+ {[%clk 0:00:33.5]} 38. Ke3 {[%clk 0:00:36.4]} 38... Ra3+
{[%clk 0:00:32.2]} 39. Kf4 {[%clk 0:00:36.6]} 39... Rf3+ {[%clk 0:00:31.9]} 40.
Kg5 {[%clk 0:00:34.6]} 40... Rxf2 {[%clk 0:00:30.4]} 41. Re8+ {[%clk 0:00:32.2]}
41... Ka7 {[%clk 0:00:29.4]} 42. e7 {[%clk 0:00:31.8]} 42... Re2 {[%clk
0:00:27.2]} 43. Kf6 {[%clk 0:00:31.8]} 43... b4 {[%clk 0:00:21]} 44. Rc8 {[%clk
0:00:22.2]} 44... Rf2+ {[%clk 0:00:14.2]} 45. Ke6 {[%clk 0:00:21.8]} 45... Re2+
{[%clk 0:00:13.3]} 46. Kd7 {[%clk 0:00:22]} 46... b3 {[%clk 0:00:10.2]} 47.
Rxc7+ {[%clk 0:00:20.4]} 47... Ka8 {[%clk 0:00:07.7]} 48. Rb7 {[%clk 0:00:20.2]}
48... Rd2+ {[%clk 0:00:07.3]} 49. Kc8 {[%clk 0:00:18.6]} 49... b2 {[%clk
0:00:04.6]} 50. e8=Q {[%clk 0:00:18]} 1-0

[Event "*** SCC Grand Prix: Titled Tuesday Blitz"]
[Site "Chess.com"]
[Date "2020.09.29"]
[Round "10"]
[White "Morshynska"]
[Black "RasSanti"]
[Result "1-0"]
[WhiteElo "2202"]
[BlackElo "2290"]
[TimeControl "180+1"]
[EndTime "11:56:31 PDT"]
[Termination "Morshynska won by resignation"]

1. Nf3 {[%clk 0:03:00.9]} 1... c5 {[%clk 0:02:55.9]} 2. g3 {[%clk 0:03:01.8]}
2... Nc6 {[%clk 0:02:53.3]} 3. d4 {[%clk 0:03:01.9]} 3... cxd4 {[%clk
0:02:52.3]} 4. Nxd4 {[%clk 0:03:02.8]} 4... Qb6 {[%clk 0:02:52.2]} 5. Nb3 {[%clk
0:02:59.7]} 5... Nf6 {[%clk 0:02:49.6]} 6. Bg2 {[%clk 0:02:58.3]} 6... g6 {[%clk
0:02:49.5]} 7. O-O {[%clk 0:02:57.7]} 7... Bg7 {[%clk 0:02:49.7]} 8. e4 {[%clk
0:02:52.8]} 8... a6 {[%clk 0:02:46.4]} 9. Be3 {[%clk 0:02:50.5]} 9... Qc7 {[%clk
0:02:45.8]} 10. Nc3 {[%clk 0:02:49.4]} 10... O-O {[%clk 0:02:43.9]} 11. Nd5
{[%clk 0:02:39.5]} 11... Nxd5 {[%clk 0:02:37.4]} 12. exd5 {[%clk 0:02:40.4]}
12... Na5 {[%clk 0:02:36.9]} 13. Nxa5 {[%clk 0:02:38.7]} 13... Qxa5 {[%clk
0:02:37.8]} 14. Bd4 {[%clk 0:02:37.4]} 14... d6 {[%clk 0:02:29.6]} 15. Bxg7
{[%clk 0:02:34.5]} 15... Kxg7 {[%clk 0:02:30.5]} 16. Qd4+ {[%clk 0:02:34.8]}
16... Kg8 {[%clk 0:02:29.4]} 17. Rfe1 {[%clk 0:02:33.5]} 17... Qc7 {[%clk
0:02:25.5]} 18. h4 {[%clk 0:02:25.6]} 18... h5 {[%clk 0:02:09.8]} 19. a4 {[%clk
0:02:21]} 19... b6 {[%clk 0:02:03.6]} 20. Ra3 {[%clk 0:02:00.9]} 20... Ra7
{[%clk 0:01:53.7]} 21. Rc3 {[%clk 0:01:41.5]} 21... Qb8 {[%clk 0:01:51.3]} 22.
Rce3 {[%clk 0:01:30.6]} 22... Re8 {[%clk 0:01:45.7]} 23. Qf4 {[%clk 0:01:27.4]}
23... Bf5 {[%clk 0:01:28.2]} 24. c4 {[%clk 0:01:18.6]} 24... a5 {[%clk
0:01:18.4]} 25. Bf3 {[%clk 0:01:16.5]} 25... Kg7 {[%clk 0:01:15.9]} 26. Bxh5
{[%clk 0:01:11.2]} 26... Qc8 {[%clk 0:01:07.9]} 27. Bd1 {[%clk 0:01:05.1]} 27...
Rc7 {[%clk 0:01:06.9]} 28. b3 {[%clk 0:01:04]} 28... Qd8 {[%clk 0:00:59.3]} 29.
g4 {[%clk 0:01:01.4]} 29... Bc8 {[%clk 0:00:58]} 30. h5 {[%clk 0:01:00.6]} 30...
Rh8 {[%clk 0:00:55.8]} 31. Rh3 {[%clk 0:00:54.1]} 31... e5 {[%clk 0:00:51.9]}
32. dxe6 {[%clk 0:00:49.6]} 32... Bxe6 {[%clk 0:00:49.9]} 33. Qd4+ {[%clk
0:00:45.8]} 33... Qf6 {[%clk 0:00:44.1]} 34. h6+ {[%clk 0:00:38.2]} 34... Rxh6
{[%clk 0:00:42.8]} 35. Qxf6+ {[%clk 0:00:36.8]} 35... Kxf6 {[%clk 0:00:43.7]}
36. Rxh6 {[%clk 0:00:37.2]} 36... d5 {[%clk 0:00:42.7]} 37. cxd5 {[%clk
0:00:35.5]} 37... Bxd5 {[%clk 0:00:43.6]} 38. Rh8 {[%clk 0:00:32.1]} 38... Rc3
{[%clk 0:00:42]} 39. Rb8 {[%clk 0:00:29.6]} 39... Bxb3 {[%clk 0:00:39.9]} 40.
Bxb3 {[%clk 0:00:30.5]} 40... Rxb3 {[%clk 0:00:40.2]} 41. Re4 {[%clk 0:00:28.7]}
41... Kg5 {[%clk 0:00:36.8]} 42. Kg2 {[%clk 0:00:28.3]} 42... Rb2 {[%clk
0:00:35.5]} 43. Rd4 {[%clk 0:00:27.3]} 43... f6 {[%clk 0:00:32.5]} 44. Kg3
{[%clk 0:00:26.8]} 44... Rb3+ {[%clk 0:00:31.4]} 45. f3 {[%clk 0:00:26.4]} 45...
f5 {[%clk 0:00:27.7]} 46. gxf5 {[%clk 0:00:27.3]} 46... Kxf5 {[%clk 0:00:25.6]}
47. Rg8 {[%clk 0:00:28.2]} 47... Ke5 {[%clk 0:00:21.2]} 48. Re4+ {[%clk
0:00:26.8]} 48... Kf5 {[%clk 0:00:20.8]} 49. Rf8+ {[%clk 0:00:26.4]} 49... Kg5
{[%clk 0:00:20.5]} 50. Rg4+ {[%clk 0:00:26.5]} 50... Kh6 {[%clk 0:00:20.2]} 51.
Rh8+ {[%clk 0:00:26.1]} 51... Kg7 {[%clk 0:00:19.1]} 52. Rc8 {[%clk 0:00:26.3]}
52... b5 {[%clk 0:00:17.7]} 53. axb5 {[%clk 0:00:24.7]} 53... Rxb5 {[%clk
0:00:18.6]} 54. Rc7+ {[%clk 0:00:24]} 54... Kf6 {[%clk 0:00:15.6]} 55. Rc6+
{[%clk 0:00:24]} 55... Kf7 {[%clk 0:00:14.1]} 56. Rgxg6 {[%clk 0:00:24.9]} 56...
a4 {[%clk 0:00:12.2]} 57. Ra6 {[%clk 0:00:25.3]} 57... Rb4 {[%clk 0:00:09]} 58.
Rgb6 {[%clk 0:00:24.4]} 58... Rxb6 {[%clk 0:00:07]} 59. Rxb6 {[%clk 0:00:25.3]}
1-0

[Event "*** SCC Grand Prix: Titled Tuesday Blitz"]
[Site "Chess.com"]
[Date "2020.09.29"]
[Round "10"]
[White "Bigfish1995"]
[Black "vladislavkovalev"]
[Result "1-0"]
[WhiteElo "3110"]
[BlackElo "2857"]
[TimeControl "180+1"]
[EndTime "11:56:32 PDT"]
[Termination "Bigfish1995 won on time"]

1. e4 {[%clk 0:03:00.9]} 1... e5 {[%clk 0:03:00.1]} 2. Nf3 {[%clk 0:03:00.9]}
2... Nc6 {[%clk 0:03:00.8]} 3. Bb5 {[%clk 0:03:01]} 3... a6 {[%clk 0:03:01.3]}
4. Ba4 {[%clk 0:03:00.9]} 4... Nf6 {[%clk 0:03:01.8]} 5. O-O {[%clk 0:03:01.2]}
5... Be7 {[%clk 0:03:02.3]} 6. Re1 {[%clk 0:03:01.5]} 6... b5 {[%clk 0:03:02.9]}
7. Bb3 {[%clk 0:03:01.9]} 7... d6 {[%clk 0:03:03.7]} 8. c3 {[%clk 0:03:01.5]}
8... O-O {[%clk 0:03:04.4]} 9. h3 {[%clk 0:03:02.2]} 9... Bb7 {[%clk 0:03:04.9]}
10. d4 {[%clk 0:03:02.1]} 10... Nd7 {[%clk 0:03:05.2]} 11. Be3 {[%clk 0:03:01]}
11... exd4 {[%clk 0:02:57.8]} 12. cxd4 {[%clk 0:03:00.8]} 12... Na5 {[%clk
0:02:58.5]} 13. d5 {[%clk 0:02:51.5]} 13... Nxb3 {[%clk 0:02:55.5]} 14. axb3
{[%clk 0:02:51.7]} 14... c5 {[%clk 0:02:24.6]} 15. dxc6 {[%clk 0:02:50.9]} 15...
Bxc6 {[%clk 0:02:25.3]} 16. Nc3 {[%clk 0:02:51.5]} 16... Bb7 {[%clk 0:02:16.4]}
17. Nd4 {[%clk 0:02:45.3]} 17... g6 {[%clk 0:02:01.6]} 18. Nd5 {[%clk
0:02:42.1]} 18... Re8 {[%clk 0:01:44.1]} 19. Rc1 {[%clk 0:02:40.4]} 19... Nc5
{[%clk 0:01:36.3]} 20. b4 {[%clk 0:02:29.9]} 20... Bxd5 {[%clk 0:01:12]} 21.
exd5 {[%clk 0:02:27.4]} 21... Ne4 {[%clk 0:01:12]} 22. Nc6 {[%clk 0:02:20.6]}
22... Qd7 {[%clk 0:01:12.1]} 23. Bd4 {[%clk 0:01:38.5]} 23... Bg5 {[%clk
0:00:49.5]} 24. Rc2 {[%clk 0:01:37.1]} 24... Nf6 {[%clk 0:00:34.9]} 25. Rxe8+
{[%clk 0:01:11.6]} 25... Rxe8 {[%clk 0:00:35.8]} 26. Qf3 {[%clk 0:01:10.4]}
26... Qf5 {[%clk 0:00:36.3]} 27. Qxf5 {[%clk 0:01:10]} 27... Re1+ {[%clk
0:00:37]} 28. Kh2 {[%clk 0:01:07.6]} 28... gxf5 {[%clk 0:00:37.8]} 29. Bc3
{[%clk 0:00:46.6]} 29... Re8 {[%clk 0:00:34.4]} 30. Nd4 {[%clk 0:00:31.7]} 30...
Nxd5 {[%clk 0:00:31.5]} 31. Nxf5 {[%clk 0:00:31.8]} 31... Rc8 {[%clk 0:00:25.1]}
32. g3 {[%clk 0:00:28.5]} 32... Nxc3 {[%clk 0:00:19.8]} 33. bxc3 {[%clk
0:00:23.5]} 33... Bf6 {[%clk 0:00:16.3]} 34. Ra2 {[%clk 0:00:23.6]} 34... Rc6
{[%clk 0:00:13]} 35. Ne3 {[%clk 0:00:19]} 35... Bd8 {[%clk 0:00:06.1]} 36. Nd5
{[%clk 0:00:19]} 36... Kf8 {[%clk 0:00:06.1]} 37. Kg2 {[%clk 0:00:19.1]} 37...
Ke8 {[%clk 0:00:05.4]} 38. Kf3 {[%clk 0:00:19.7]} 38... Kd7 {[%clk 0:00:06]} 39.
Ke4 {[%clk 0:00:19.5]} 39... Ke6 {[%clk 0:00:04]} 40. Nf4+ {[%clk 0:00:19.6]}
40... Kd7 {[%clk 0:00:04.5]} 41. Kd3 {[%clk 0:00:20.2]} 41... Bb6 {[%clk
0:00:02.6]} 42. Nd5 {[%clk 0:00:19.6]} 42... Bd8 {[%clk 0:00:03]} 43. f4 {[%clk
0:00:19.7]} 43... Ke6 {[%clk 0:00:02.8]} 44. Ne3 {[%clk 0:00:19.5]} 44... h5
{[%clk 0:00:03.4]} 45. g4 {[%clk 0:00:16.9]} 45... hxg4 {[%clk 0:00:04.3]} 46.
hxg4 {[%clk 0:00:17.8]} 46... Bf6 {[%clk 0:00:04.5]} 47. Ra3 {[%clk 0:00:18.2]}
47... Bd8 {[%clk 0:00:03.2]} 48. Nf5 {[%clk 0:00:17.2]} 48... Bf6 {[%clk
0:00:02.7]} 49. Ne3 {[%clk 0:00:15.7]} 49... Bd8 {[%clk 0:00:02.8]} 50. g5
{[%clk 0:00:15]} 50... Be7 {[%clk 0:00:02.6]} 51. f5+ {[%clk 0:00:14.4]} 51...
Ke5 {[%clk 0:00:02.5]} 52. f6 {[%clk 0:00:14.7]} 52... Bd8 {[%clk 0:00:02.7]}
53. Ra2 {[%clk 0:00:14.8]} 53... Kf4 {[%clk 0:00:01.1]} 54. Rg2 {[%clk 0:00:15]}
1-0